bitfinex-derivatives/quotes_SOLF0:USTF0_20241012
["timestamp","ask_amount","ask_price","bid_price","bid_amount"]
[1728695310018,11.8134249,146.36,146.3,8.4]
[1728695310719,3.4171,146.35,146.31,3.4178]
[1728695311016,8.4,146.35,146.29,8.4]
[1728695311417,3.4173,146.34,146.3,3.418]
[1728695311916,8.4,146.35,146.29,8.4]
[1728695312115,3.4176,146.33,146.29,11.8181]
[1728695312517,3.4177,146.32,146.29,3.4181]
[1728695313414,3.4177,146.32,146.28,3.4185]
[1728695314919,3.4177,146.32,146.27,8.52502]
[1728695315116,3.4177,146.32,146.29,3.4183]
[1728695320621,11.8177,146.32,146.29,3.4183]
[1728695320823,8.4,146.32,146.27,8.52502]
[1728695321023,3.4179,146.31,146.28,3.4185]
[1728695323018,8.4,146.29,146.27,0.12502]
[1728695323215,8.4,146.28,146.27,0.12502]
[1728695323630,11.8186,146.28,146.27,0.12502]
[1728695324624,15.17483765,146.28,146.27,0.12502]
[1728695324822,11.75623765,146.28,146.21,0.12502]
[1728695325021,3.4196,146.24,146.21,0.12502]
[1728695325932,11.8198,146.23,146.21,0.12502]
[1728695326427,3.42,146.22,146.21,0.12502]
[1728695328531,11.82,146.22,146.21,0.12502]
[1728695330921,11.82,146.22,146.15,0.12502]
[1728695330922,3.4208,146.19,146.15,3.54662]
[1728695331125,8.4,146.18,146.15,3.54662]
[1728695331831,8.4,146.17,146.15,0.12502]
[1728695332331,11.8214,146.16,146.15,0.12502]
[1728695338936,8.62146469,146.17,146.15,0.12502]
[1728695339145,5.16,146.18,146.15,0.12502]
[1728695339531,8.5809,146.18,146.15,3.54652]
[1728695339737,8.5809,146.18,146.15,0.12502]
[1728695339933,16.9809,146.18,146.15,0.12502]
[1728695340539,13.56,146.18,146.15,0.12502]
[1728695340836,8.4,146.16,146.15,0.12502]
[1728695341236,11.8214,146.16,146.15,0.12502]
[1728695342439,3.4214,146.16,146.15,0.12502]
[1728695342639,11.8214,146.16,146.15,0.12502]
[1728695344144,3.4214,146.16,146.15,0.12502]
[1728695344341,11.8214,146.16,146.15,0.12502]
[1728695345045,5.16,146.18,146.15,0.12502]
[1728695345248,3.4212,146.17,146.15,0.12502]
[1728695345941,13.56,146.18,146.15,0.12502]
[1728695346142,3.4214,146.16,146.15,0.12502]
[1728695346839,11.8214,146.16,146.15,0.12502]
[1728695361451,3.4226,146.11,146.09,0.12502]
[1728695361757,8.4,146.11,146.09,0.12502]
[1728695362653,11.8227,146.11,146.09,0.12502]
[1728695362948,15.30093661,146.11,146.09,0.12502]
[1728695363152,11.87823661,146.11,146.09,0.12502]
[1728695363349,3.4228,146.1,146.09,0.12502]
[1728695363659,11.8228,146.1,146.09,0.12502]
[1728695365961,3.4228,146.1,146.09,0.12502]
[1728695366864,11.8228,146.1,146.09,0.12502]
[1728695367657,16.8628,146.1,146.09,0.12502]
[1728695379865,3.4239,146.06,146.04,1.4234]
[1728695380071,11.8239,146.06,146.03,0.12502]
[1728695380258,3.4239,146.06,146.03,0.12502]
[1728695380456,8.4,146.04,146.03,0.12502]
[1728695385461,5.06,146.06,146.03,0.12502]
[1728695385462,335.0,146.13,146.03,8.52502]
[1728695385669,8.4,146.1,146.05,8.4]
[1728695385872,3.44223173,146.09,146.05,8.4]
[1728695386674,11.84223173,146.09,146.04,1.3697]
[1728695386872,13.4,146.09,146.04,1.3697]
[1728695387572,13.4,146.09,146.06,3.4237]
[1728695387573,20.16694096,146.09,146.06,3.4237]
[1728695388383,20.16694096,146.09,146.05,3.4239]
[1728695388563,16.74394096,146.09,146.05,3.4239]
[1728695388766,3.4233,146.08,146.05,3.4239]
[1728695391483,20.16704096,146.09,146.05,3.4239]
[1728695391678,11.76704096,146.09,146.06,3.4236]
[1728695391876,20.16704096,146.09,146.06,3.4236]
[1728695393781,20.16704096,146.09,146.05,3.4239]
[1728695394577,20.16704096,146.09,146.06,3.4237]
[1728695396086,20.16704096,146.09,146.04,1.3697]
[1728695396289,20.16704096,146.09,146.05,3.4239]
[1728695396784,16.74394096,146.09,146.05,3.4239]
[1728695396980,3.4233,146.08,146.05,3.4239]
[1728695399188,16.74394096,146.09,146.05,3.4239]
[1728695399189,20.16704096,146.09,146.05,3.4239]
[1728695400389,16.74394096,146.09,146.04,2.7441]
[1728695400590,16.74394096,146.09,146.04,6.1681]
[1728695400591,3.4234,146.08,146.04,6.1681]
[1728695401490,3.4235,146.07,146.04,6.1681]
[1728695402292,11.8235,146.07,146.04,6.1681]
[1728695402588,8.4,146.07,146.04,6.1681]
[1728695405289,11.8235,146.07,146.04,6.1681]
[1728695410300,8.4,146.07,146.05,3.4239]
[1728695411500,3.4233,146.08,146.05,3.4239]
[1728695411702,11.8233,146.08,146.05,3.4239]
[1728695423913,3.4233,146.08,146.05,3.4239]
[1728695424112,8.4,146.08,146.05,3.4239]
[1728695426814,11.8233,146.08,146.05,3.4239]
[1728695428020,11.8233,146.08,146.04,1.3697]
[1728695428322,11.8233,146.08,146.04,4.7939]
[1728695428719,8.4,146.08,146.04,4.7939]
[1728695429023,3.4235,146.07,146.04,4.7939]
[1728695429824,8.4,146.07,146.03,0.12502]
[1728695430022,8.4,146.05,146.03,0.12502]
[1728695430912,3.4242,146.04,146.03,0.12502]
[1728695433117,3.4247,146.02,145.97,0.12502]
[1728695433328,8.4,146.01,145.97,0.12502]
[1728695434223,8.4,146.01,145.98,3.4256]
[1728695435919,8.4245,146.03,145.97,8.52502]
[1728695436127,8.4245,146.03,145.97,9.88632]
[1728695437532,3.4247,146.02,145.97,9.88632]
[1728695438332,3.4247,146.02,145.99,3.4253]
[1728695438529,8.4245,146.03,145.99,3.4253]
[1728695443336,8.4245,146.03,146.0,3.4251]
[1728695443541,5.0,146.03,146.0,3.4251]
[1728695445736,8.4244,146.03,146.0,3.4251]
[1728695447256,5.0,146.03,146.0,3.4251]
[1728695447432,16.8242,146.04,146.01,3.4249]
[1728695447641,8.4,146.04,146.01,3.4249]
[1728695448832,5.0,146.05,145.99,8.4]
[1728695448833,1.0189,146.08,145.99,8.4]
[1728695449141,8.4,146.05,145.99,8.4]
[1728695449543,3.46896096,146.09,145.97,1.48632]
[1728695449544,8.4,146.02,146.0,3.425]
[1728695450132,8.4,146.01,145.97,1.48632]
[1728695450338,8.4,146.01,145.99,3.4253]
[1728695454446,3.4247,146.02,145.99,3.4253]
[1728695455744,8.4,146.03,145.99,3.4253]
[1728695455947,2.7479,146.08,146.02,3.4245]
[1728695456146,8.4,146.07,146.02,3.4245]
[1728695456536,3.4239,146.06,146.0,8.4]
[1728695456741,3.4239,146.06,146.03,3.4244]
[1728695457543,11.8239,146.06,146.02,3.4246]
[1728695457742,3.424,146.05,145.99,1.3431]
[1728695457945,8.4,146.06,145.99,9.7431]
[1728695458953,8.4,146.06,145.99,1.3431]
[1728695459249,3.424,146.05,146.0,8.4]
[1728695460042,8.4,146.06,146.0,8.4]
[1728695460247,11.8238,146.06,146.02,3.4246]
[1728695461355,3.424,146.05,146.02,3.4246]
[1728695461551,8.4,146.04,146.02,3.4246]
[1728695461849,11.8242,146.04,146.01,3.4249]
[1728695462653,8.4,146.04,145.99,9.7431]
[1728695462948,11.8238,146.06,146.02,3.4244]
[1728695463649,3.4241,146.05,146.02,3.4244]
[1728695463949,8.4,146.06,146.0,8.4]
[1728695464144,8.4,146.05,146.01,3.4248]
[1728695464647,13.4,146.05,146.01,3.4248]
[1728695465548,3.4242,146.04,146.01,3.4248]
[1728695472156,16.8241,146.05,146.01,3.4248]
[1728695472756,13.4,146.05,145.97,1.48632]
[1728695472953,8.4,146.03,145.97,1.48632]
[1728695473150,2.7479,146.08,145.99,8.4]
[1728695473456,3.4241,146.05,146.01,3.4248]
[1728695473656,5.0,146.04,146.01,3.4248]
[1728695474155,5.0,146.04,146.0,3.425]
[1728695474365,13.4,146.04,146.0,3.425]
[1728695475453,3.4245,146.03,146.0,3.425]
[1728695478658,16.8244,146.04,146.0,3.425]
[1728695478962,13.4,146.04,146.0,3.425]
[1728695479356,3.4246,146.03,145.99,3.4253]
[1728695480059,3.4246,146.03,146.0,3.4251]
[1728695481451,5.0,146.04,146.0,3.4251]
[1728695481656,8.4243,146.04,146.01,3.4249]
[1728695483261,8.4243,146.04,146.0,3.425]
[1728695484060,8.4,146.05,145.97,6.48632]
[1728695484061,8.4238,146.06,146.02,3.4246]
[1728695484458,3.424,146.05,146.01,3.4248]
[1728695484658,11.824,146.05,146.01,3.4248]
[1728695487763,3.424,146.05,146.01,3.4248]
[1728695489355,13.4,146.06,145.99,8.4]
[1728695489556,16.8238,146.06,146.02,3.4245]
[1728695489753,8.4238,146.06,145.99,8.4]
[1728695490057,8.4238,146.06,146.01,3.4249]
[1728695490253,8.4238,146.06,145.99,8.4]
[1728695490657,3.4238,146.06,145.99,8.4]
[1728695490862,5.0,146.07,146.03,8.4]
[1728695491065,5.0,146.07,146.04,8.4]
[1728695491361,5.0,146.07,146.05,3.4239]
[1728695491960,5.0,146.07,146.04,8.4]
[1728695492271,5.0,146.07,146.04,11.8241]
[1728695492766,5.0,146.07,146.04,3.4241]
[1728695493765,8.4235,146.07,146.04,3.4241]
[1728695493959,13.4,146.07,146.02,4.8445]
[1728695494864,8.4,146.06,146.02,1.4199]
[1728695495060,8.4,146.06,145.99,8.4]
[1728695495459,3.4244,146.04,146.0,3.425]
[1728695496860,11.8244,146.04,146.0,3.425]
[1728695497054,3.4244,146.04,146.0,3.425]
[1728695497255,3.4244,146.04,145.99,8.4]
[1728695497463,3.4244,146.04,146.01,3.4249]
[1728695498067,3.424,146.05,146.01,3.4249]
[1728695498563,3.424,146.05,146.01,11.8247]
[1728695502870,3.424,146.05,146.01,3.4247]
[1728695503073,3.4242,146.04,146.01,3.4247]
[1728695516681,4.98,146.05,145.99,9.7975]
[1728695516875,8.404,146.05,146.02,3.4246]
[1728695518682,8.404,146.05,146.01,3.4248]
[1728695519280,4.98,146.05,146.01,3.4248]
[1728695519488,11.8243,146.04,146.0,3.425]
[1728695520385,8.4,146.03,145.97,0.12502]
[1728695520581,11.8249,146.01,145.98,3.4256]
[1728695524199,11.8252,146.0,145.97,3.55082]
[1728695524892,15.31952799,146.0,145.97,3.55082]
[1728695525792,3.49432799,146.0,145.97,0.12502]
[1728695525994,8.4047,146.02,145.99,3.4254]
[1728695529393,8.4047,146.02,145.97,0.12502]
[1728695529592,3.4249,146.01,145.98,3.4256]
[1728695531189,4.98,146.02,145.98,3.4256]
[1728695531390,8.4047,146.02,145.98,3.4256]
[1728695532990,8.4047,146.02,145.99,3.4253]
[1728695533898,8.4047,146.02,145.97,8.52502]
[1728695533899,16.8047,146.02,145.98,3.4255]
[1728695534598,3.4249,146.01,145.97,0.12502]
[1728695534803,8.4,146.01,145.97,3.55082]
[1728695535402,3.39121454,146.0,145.97,3.55082]
[1728695536502,6.81641454,146.0,145.97,3.55082]
[1728695538800,6.81641454,146.0,145.97,0.12502]
[1728695538801,3.39121454,146.0,145.97,0.12502]
[1728695539009,3.4254,145.99,145.97,0.12502]
[1728695539304,6.83637338,145.99,145.97,0.12502]
[1728695541997,3.41097338,145.99,145.97,0.12502]
[1728695542198,3.425,146.01,145.97,8.52502]
[1728695542602,6.8290126,146.01,145.97,8.52502]
[1728695543405,6.8290126,146.01,145.98,3.4254]
[1728695547003,11.8040126,146.01,145.97,0.12502]
[1728695547209,3.4253,146.0,145.97,0.12502]
[1728695547608,3.4254,145.99,145.97,0.12502]
[1728695552820,3.4256,145.98,145.97,0.12502]
[1728695553614,11.8256,145.98,145.97,0.12502]
[1728695556924,3.4265,145.95,145.91,3.55222]
[1728695557124,8.4,145.94,145.91,3.55222]
[1728695557324,8.4,145.94,145.91,0.12502]
[1728695557529,3.4269,145.93,145.91,0.12502]
[1728695557828,8.4,145.94,145.91,0.12502]
[1728695558125,15.19469765,145.93,145.91,0.12502]
[1728695558314,11.76769765,145.93,145.91,0.12502]
[1728695559419,3.427,145.92,145.91,0.12502]
[1728695560526,3.36769765,145.93,145.91,0.12502]
[1728695560725,3.4268,145.93,145.91,0.12502]
[1728695560920,6.87117757,145.93,145.91,0.12502]
[1728695561129,3.44437757,145.93,145.91,0.12502]
[1728695561332,3.4266,145.94,145.91,0.12502]
[1728695561630,4.98,145.95,145.92,3.4268]
[1728695562631,13.38,145.95,145.92,3.4268]
[1728695562831,16.8063,145.95,145.92,3.4268]
[1728695563332,16.8063,145.95,145.91,0.12502]
[1728695563636,16.8063,145.95,145.91,3.55222]
[1728695566434,11.8266,145.94,145.91,3.55222]
[1728695566827,8.4,145.94,145.91,3.55222]
[1728695568539,11.8266,145.94,145.91,3.55222]
[1728695569034,11.8266,145.94,145.91,0.12502]
[1728695572437,11.8269,145.93,145.91,0.12502]
[1728695574436,3.427,145.92,145.91,0.12502]
[1728695574844,8.407,145.92,145.91,0.12502]
[1728695583849,16.807,145.92,145.91,0.12502]
[1728695586846,3.427,145.92,145.91,0.12502]
[1728695587044,11.827,145.92,145.91,0.12502]
[1728695593754,3.4276,145.9,145.87,1.4026]
[1728695593960,8.4,145.88,145.87,1.4026]
[1728695594453,8.4,145.88,145.85,3.55352]
[1728695594659,8.4,145.88,145.85,0.12502]
[1728695595449,8.4,145.88,145.86,3.4284]
[1728695597363,11.8281,145.88,145.85,3.55362]
[1728695597970,11.8282,145.87,145.85,0.12502]
[1728695598272,8.4,145.87,145.85,0.12502]
[1728695598965,11.8283,145.87,145.85,0.12502]
[1728695599162,8.4,145.87,145.85,0.12502]
[1728695599367,8.4,145.86,145.85,0.12502]
[1728695599569,11.8284,145.86,145.85,0.12502]
[1728695600172,8.4,145.86,145.85,0.12502]
[1728695600373,8.4,145.87,145.85,0.12502]
[1728695600773,13.38,145.88,145.85,0.12502]
[1728695601291,13.38,145.88,145.85,3.55352]
[1728695602469,16.808,145.88,145.85,3.55352]
[1728695604069,13.38,145.88,145.85,3.55352]
[1728695605364,4.98,145.88,145.86,3.4283]
[1728695605569,11.8275,145.9,145.85,0.12502]
[1728695605968,11.8275,145.9,145.86,3.4283]
[1728695606270,3.44600959,145.89,145.86,3.4283]
[1728695608502,11.8275,145.9,145.86,3.4283]
[1728695608875,15.32003243,145.9,145.86,3.4283]
[1728695609375,3.49253243,145.9,145.85,0.12502]
[1728695609579,8.4,145.91,145.87,3.4281]
[1728695610083,15.22735597,145.91,145.87,3.4281]
[1728695612571,8.4,145.89,145.85,0.12502]
[1728695612771,8.4,145.89,145.86,3.4283]
[1728695613576,11.8278,145.89,145.86,3.4283]
[1728695614276,8.4,145.87,145.86,3.4283]
[1728695614671,8.4,145.87,145.85,0.12502]
[1728695615068,8.4,145.86,145.85,0.12502]
[1728695615784,11.8284,145.86,145.85,0.12502]
[1728695616572,8.4,145.86,145.85,0.12502]
[1728695619283,3.4283,145.87,145.85,0.12502]
[1728695619482,11.8283,145.87,145.85,0.12502]
[1728695620071,8.4,145.87,145.85,0.12502]
[1728695620273,8.4,145.87,145.85,3.55362]
[1728695623379,8.4,145.87,145.85,0.12502]
[1728695631986,11.8282,145.87,145.85,0.12502]
[1728695641508,8.4,145.86,145.85,0.12502]
[1728695641801,11.8284,145.86,145.85,0.12502]
[1728695643604,8.4,145.86,145.85,0.12502]
[1728695644411,11.8284,145.86,145.85,0.12502]
[1728695662009,8.4,145.86,145.8,1.42438]
[1728695662214,8.4,145.83,145.8,4.85408]
[1728695662831,11.8292,145.83,145.8,4.85408]
[1728695673416,8.4,145.83,145.81,3.4295]
[1728695675323,3.429,145.84,145.81,3.4295]
[1728695675627,11.829,145.84,145.81,3.4295]
[1728695677821,8.4,145.82,145.81,3.4295]
[1728695680120,8.4,145.82,145.8,3.55488]
[1728695680519,8.4,145.82,145.8,0.12518]
[1728695681528,11.8294,145.82,145.8,0.12518]
[1728695688829,8.4,145.82,145.8,0.12518]
[1728695689029,8.4,145.82,145.8,3.55498]
[1728695689732,8.4,145.82,145.8,0.12518]
[1728695691025,6.86976625,145.83,145.8,0.12518]
[1728695691026,11.8296,145.81,145.8,0.12518]
[1728695696039,3.4292,145.83,145.8,0.12518]
[1728695696236,336.0206,145.9,145.81,8.4]
[1728695696237,8.4,145.86,145.81,8.4]
[1728695696431,13.38,145.86,145.81,8.4]
[1728695696635,16.8086,145.86,145.82,3.4292]
[1728695698542,3.4287,145.85,145.82,3.4292]
[1728695699560,11.8287,145.85,145.82,3.4292]
[1728695699757,11.8287,145.85,145.81,3.4295]
[1728695699960,3.4292,145.83,145.8,1.53488]
[1728695700553,8.4,145.82,145.8,1.53488]
[1728695700954,11.829,145.84,145.8,4.96468]
[1728695701252,11.829,145.84,145.8,1.53488]
[1728695701447,3.429,145.84,145.8,9.93488]
[1728695702554,3.429,145.84,145.81,3.4295]
[1728695705058,3.429,145.84,145.8,1.53488]
[1728695705059,11.829,145.84,145.8,1.53488]
[1728695705360,3.4291,145.83,145.8,4.96468]
[1728695706364,11.8294,145.82,145.8,0.12518]
[1728695708964,3.4292,145.83,145.8,3.55498]
[1728695709172,11.8292,145.83,145.8,3.55498]
[1728695710461,3.429,145.84,145.81,3.4296]
[1728695713272,3.429,145.84,145.8,3.55488]
[1728695714066,3.4292,145.83,145.8,0.12518]
[1728695714273,8.4,145.83,145.8,0.12518]
[1728695714576,11.8295,145.82,145.8,0.12518]
[1728695715669,3.4296,145.81,145.8,0.12518]
[1728695719468,11.8296,145.81,145.8,0.12518]
[1728695721373,3.4298,145.8,145.74,11.2482]
[1728695721677,8.4,145.77,145.74,11.2482]
[1728695722179,11.8306,145.77,145.74,11.2482]
[1728695722578,3.4306,145.77,145.74,11.2482]
[1728695723176,8.4,145.75,145.73,0.12502]
[1728695723375,4.98,145.77,145.73,0.12502]
[1728695723376,8.4,145.74,145.73,0.12502]
[1728695723671,4.98,145.77,145.73,0.12502]
[1728695723868,13.38,145.77,145.73,0.12502]
[1728695724775,13.38,145.77,145.73,3.55632]
[1728695724776,16.8107,145.77,145.73,3.55632]
[1728695725679,3.4308,145.76,145.73,3.55632]
[1728695725887,73.58353642,145.78,145.74,3.4311]
[1728695725888,78.56353642,145.78,145.74,3.4311]
[1728695726177,86.96353642,145.78,145.73,0.12502]
[1728695726582,86.96353642,145.78,145.75,3.4309]
[1728695728278,90.39383642,145.78,145.75,3.4309]
[1728695730386,90.39383642,145.78,145.74,3.4311]
[1728695730582,16.8103,145.78,145.74,3.4311]
[1728695730989,3.49863515,145.83,145.76,8.4]
[1728695731189,3.4298,145.81,145.76,8.4]
[1728695731389,8.4,145.81,145.76,8.4]
[1728695731686,8.4,145.81,145.76,3.4307]
[1728695731986,4.98,145.81,145.73,0.12502]
[1728695732192,4.98,145.83,145.77,8.4]
[1728695732397,13.38,145.83,145.77,8.4]
[1728695732587,3.4294,145.82,145.79,3.43]
[1728695733085,3.4294,145.82,145.77,8.4]
[1728695733279,3.4294,145.82,145.78,3.4302]
[1728695733886,3.4296,145.81,145.78,3.4302]
[1728695734690,3.4296,145.81,145.77,3.4304]
[1728695736693,3.4299,145.8,145.77,3.4304]
[1728695745296,3.4294,145.82,145.79,3.4299]
[1728695745503,8.4,145.83,145.78,8.4]
[1728695745692,8.52502,145.85,145.8,8.4]
[1728695746400,3.429,145.84,145.81,3.4295]
[1728695747291,8.4,145.83,145.78,8.4]
[1728695747496,11.8291,145.83,145.8,3.4298]
[1728695747688,11.8291,145.83,145.78,8.4]
[1728695747891,11.8291,145.83,145.79,3.43]
[1728695748297,3.4294,145.82,145.79,3.43]
[1728695748995,11.8292,145.83,145.79,3.43]
[1728695750795,11.8292,145.83,145.78,8.4]
[1728695751003,8.4,145.83,145.8,3.4297]
[1728695751691,3.429,145.84,145.8,3.4297]
[1728695753291,0.12502,145.85,145.83,3.4291]
[1728695753496,0.12502,145.85,145.84,8.4]
[1728695753802,0.12502,145.85,145.84,11.8289]
[1728695754600,0.12502,145.85,145.84,3.4289]
[1728695755102,11.95372,145.85,145.82,5.04]
[1728695756194,11.95372,145.85,145.82,8.4692]
[1728695756195,0.12502,145.85,145.82,8.4692]
[1728695759696,0.12502,145.85,145.83,3.4291]
[1728695760602,0.12502,145.85,145.84,3.4289]
[1728695761601,0.12502,145.85,145.84,11.8289]
[1728695762906,0.12502,145.85,145.84,3.4289]
[1728695765102,0.12502,145.85,145.83,8.4]
[1728695766006,0.12502,145.85,145.84,3.4289]
[1728695766909,0.12502,145.85,145.84,11.8289]
[1728695768609,0.12502,145.85,145.84,3.4289]
[1728695770204,0.12502,145.85,145.84,11.8289]
[1728695775307,0.12502,145.91,145.84,8.4]
[1728695775509,0.12502,145.91,145.89,8.4]
[1728695775902,3.55242,145.91,145.89,8.4]
[1728695776213,0.12502,145.91,145.89,8.4]
[1728695776512,0.12502,145.91,145.9,8.4]
[1728695777303,0.12502,145.91,145.9,11.8275]
[1728695777505,0.12502,145.97,145.9,8.4]
[1728695777709,0.12502,145.97,145.93,8.4]
[1728695778013,3.4261,145.96,145.93,8.4]
[1728695778602,0.12502,145.97,145.93,8.4]
[1728695778802,8.4,145.96,145.91,13.46]
[1728695779415,3.4267,145.94,145.91,13.46]
[1728695781419,3.4267,145.94,145.92,8.4]
[1728695782721,3.4265,145.95,145.92,8.4]
[1728695790326,0.12502,145.97,145.92,8.4]
[1728695790622,3.4262,145.96,145.93,11.8268]
[1728695791523,3.4262,145.96,145.95,8.4]
[1728695792113,3.4262,145.96,145.93,8.4]
[1728695792318,0.12502,145.97,145.93,8.4]
[1728695792922,3.4264,145.95,145.92,8.4]
[1728695794030,3.4264,145.95,145.93,8.4]
[1728695794228,0.12502,145.97,145.93,8.4]
[1728695794229,3.4261,145.96,145.93,8.4]
[1728695794425,3.4261,145.96,145.95,8.4]
[1728695795825,0.12502,145.97,145.93,8.4]
[1728695796032,3.4263,145.95,145.93,8.4]
[1728695796425,0.12502,145.97,145.93,8.4]
[1728695798038,3.4261,145.96,145.93,8.4]
[1728695799532,3.4264,145.95,145.93,8.4]
[1728695803936,3.4261,145.96,145.93,8.4]
[1728695812156,8.4,145.95,145.86,2.7264]
[1728695812352,8.4,145.95,145.88,8.4]
[1728695812754,3.4271,145.92,145.88,11.8278]
[1728695813054,3.4271,145.92,145.88,8.4]
[1728695814450,3.4271,145.92,145.89,3.4277]
[1728695814844,3.4269,145.93,145.89,3.4277]
[1728695815044,3.4269,145.93,145.89,11.8277]
[1728695815448,8.4,145.95,145.89,11.8277]
[1728695815645,3.4269,145.93,145.89,11.8277]
[1728695830261,5.02,145.96,145.92,8.4]
[1728695830858,5.02,145.96,145.91,8.4]
[1728695831960,3.4267,145.94,145.91,11.8271]
[1728695833068,5.02,145.96,145.88,5.02]
[1728695833266,8.4,145.94,145.86,4.1484]
[1728695833574,8.4,145.94,145.88,5.02]
[1728695834155,3.4275,145.91,145.87,11.8279]
[1728695834462,8.4,145.91,145.86,2.7583]
[1728695834659,3.4279,145.89,145.86,6.1867]
[1728695835460,8.4,145.89,145.85,0.12502]
[1728695836267,3.428,145.88,145.85,0.12502]
[1728695836460,8.4,145.89,145.85,0.12502]
[1728695837567,3.428,145.88,145.85,0.12502]
[1728695837767,8.4,145.89,145.85,0.12502]
[1728695838662,3.4283,145.87,145.85,0.12502]
[1728695842073,2.6628,145.95,145.86,8.4]
[1728695842368,2.6628,145.95,145.9,8.4]
[1728695842571,7.6428,145.95,145.9,8.4]
[1728695842772,3.4269,145.93,145.9,8.4]
[1728695845471,3.4267,145.94,145.91,8.4]
[1728695846875,3.4267,145.94,145.91,11.8272]
[1728695848178,3.4267,145.94,145.91,8.4]
[1728695848375,3.4267,145.94,145.9,11.8274]
[1728695849876,3.4267,145.94,145.91,8.4]
[1728695850380,3.4267,145.94,145.91,11.8272]
[1728695852865,8.4,145.95,145.89,8.4]
[1728695853071,3.4271,145.92,145.88,13.36]
[1728695853279,8.4,145.95,145.89,8.4]
[1728695853576,3.4268,145.93,145.89,11.8275]
[1728695856180,3.427,145.92,145.89,3.4275]
[1728695856473,3.427,145.92,145.88,16.7878]
[1728695857067,3.427,145.92,145.89,3.4277]
[1728695858982,3.4267,145.94,145.9,11.8274]
[1728695859174,3.4267,145.94,145.9,8.4]
[1728695860580,3.4267,145.94,145.91,3.4272]
[1728695862483,3.4267,145.94,145.91,11.8272]
[1728695868587,8.4,145.95,145.88,4.96]
[1728695868789,3.427,145.92,145.89,3.4276]
[1728695869579,8.4,145.95,145.88,16.7878]
[1728695869785,3.4274,145.91,145.88,16.7878]
[1728695870695,3.4274,145.91,145.88,11.8278]
[1728695870990,8.4,145.9,145.86,1.4103]
[1728695871188,8.4,145.9,145.85,8.52502]
[1728695871493,8.4,145.9,145.85,0.12502]
[1728695872588,3.428,145.88,145.85,0.12502]
[1728695881598,8.4,145.9,145.85,0.12502]
[1728695882195,3.4281,145.88,145.85,0.12502]
[1728695883300,4.96,145.9,145.86,8.4]
[1728695883528,4.96,145.91,145.87,8.4]
[1728695883989,3.4273,145.91,145.87,8.4]
[1728695884305,9.83713085,145.93,145.88,8.4]
[1728695884603,3.4271,145.92,145.88,11.8278]
[1728695885003,3.4271,145.92,145.88,8.4]
[1728695885295,3.4271,145.92,145.89,3.4277]
[1728695886101,3.4271,145.92,145.88,11.8278]
[1728695887007,8.4,145.95,145.9,11.8274]
[1728695887201,13.36,145.95,145.9,11.8274]
[1728695887702,3.4266,145.94,145.91,3.4272]
[1728695888297,3.4263,145.95,145.92,3.4269]
[1728695888696,3.4263,145.95,145.91,8.4]